lending/lending_fUSD_20250409
["ID","MTS","AMOUNT","RATE_DAILY","PERIOD"]
[357579848,1744195869206,-500.0,0.00054794,120]
[357579849,1744195869216,-500.0,0.00054794,120]
[357579850,1744195869226,-502.06801483,0.00054794,120]
[357579851,1744195869235,-500.0,0.00054794,120]
[357579852,1744195869245,-500.0,0.00054794,120]
[357579853,1744195869261,-500.0,0.00054794,120]
[357579854,1744195869270,-526.88070418,0.00054794,120]
[357579855,1744195869279,-505.5427313,0.00054794,120]
[357579856,1744195869289,-501.54610075,0.00054794,120]
[357579857,1744195869299,-500.0,0.00054794,120]
[357579858,1744195869308,-500.0,0.00054794,120]
[357579859,1744195869317,-500.0,0.00054794,120]
[357579860,1744195869327,-2749.74,0.00054794,120]
[357579861,1744195869337,-500.0,0.00054794,120]
[357579862,1744195869346,-270.85208992,0.00054794,120]
[357579863,1744195869356,-500.0,0.00054794,120]
[357579864,1744195869365,-500.0,0.00054794,120]
[357579865,1744195869375,-500.0,0.00054794,120]
[357579866,1744195869384,-500.0,0.00054794,120]
[357579867,1744195869394,-2000.0,0.00054794,2]
[357579868,1744195869403,-500.0,0.00054794,120]
[357579869,1744195869412,-500.0,0.00054794,120]
[357579870,1744195869422,-500.75754583,0.00054794,120]
[357579871,1744195869431,-500.0,0.00054794,120]
[357579872,1744195869441,-677.59,0.00054794,120]
[357579873,1744195869451,-500.0,0.00054794,120]
[357579874,1744195869461,-500.0,0.00054794,120]
[357579875,1744195869470,-505.95459326,0.00054794,120]
[357579876,1744195869480,-500.0,0.00054794,120]
[357579877,1744195869490,-500.0,0.00054794,120]
[357579878,1744195869500,-500.0,0.00054794,120]
[357579879,1744195869509,-500.0,0.00054794,120]
[357579880,1744195869518,-504.30848953,0.00054794,120]
[357579881,1744195869527,-500.0,0.00054794,120]
[357579882,1744195869537,-500.32716906,0.00054794,120]
[357579883,1744195869548,-500.0,0.00054794,120]
[357579884,1744195869558,-500.0,0.00054794,120]
[357579885,1744195869572,-500.0,0.00054794,120]
[357579886,1744195869582,-503.31501607,0.00054794,120]
[357579887,1744195869591,-500.70438436,0.00054794,30]
[357579888,1744195869601,-500.0,0.00054794,120]
[357579889,1744195869611,-505.81483992,0.00054794,120]
[357579890,1744195869620,-500.0,0.00054794,120]
[357579891,1744195869630,-500.0,0.00054794,120]
[357579892,1744195869639,-500.0,0.00054794,120]
[357579893,1744195869649,-504.75785782,0.00054794,120]
[357579894,1744195869660,-500.0,0.00054794,120]
[357579895,1744195869669,-500.0,0.00054794,120]
[357579896,1744195869678,-500.0,0.00054794,120]
[357579897,1744195869687,-500.0,0.00054794,120]
[357579898,1744195869697,-500.0,0.00054794,30]
[357579899,1744195869708,-500.0,0.00054794,120]
[357579900,1744195869717,-500.0,0.00054794,120]
[357579901,1744195869727,-500.0,0.00054794,120]
[357579902,1744195869739,-500.0,0.00054794,120]
[357579903,1744195869750,-500.0,0.00054794,120]
[357579904,1744195869760,-500.0,0.00054794,120]
[357579905,1744195869769,-500.0,0.00054794,120]
[357579906,1744195869779,-500.0,0.00054794,120]
[357579907,1744195869789,-500.0,0.00054794,120]
[357579908,1744195869798,-183.64184237,0.00054794,120]
[357579909,1744195869807,-500.0,0.00054794,120]
[357579910,1744195869816,-500.0,0.00054794,120]
[357579911,1744195869826,-500.0,0.00054794,120]
[357579912,1744195869836,-678.03,0.00054794,120]
[357579913,1744195869845,-514.19661065,0.00054794,120]
[357579914,1744195869854,-994.85,0.00054794,120]
[357579915,1744195869864,-500.0,0.00054794,120]
[357579916,1744195869874,-500.0,0.00054794,120]
[357579917,1744195869883,-500.0,0.00054794,120]
[357579918,1744195869894,-500.0,0.00054794,120]
[357579919,1744195869903,-500.0,0.00054794,120]
[357579920,1744195869914,-500.0,0.00054794,120]
[357579921,1744195869924,-631.36,0.00054794,120]
[357579922,1744195869935,-500.0,0.00054794,120]
[357579923,1744195869944,-500.0,0.00054794,120]
[357579924,1744195869954,-502.45126188,0.00054794,120]
[357579925,1744195869964,-500.0,0.00054794,120]
[357579926,1744195869974,-538.58082359,0.00054794,120]
[357579927,1744195869983,-500.0,0.00054794,120]
[357579928,1744195869993,-500.0,0.00054794,120]
[357579929,1744195870003,-500.0,0.00054794,120]
[357579930,1744195870012,-500.0,0.00054794,120]
[357579931,1744195870022,-500.0,0.00054794,120]
[357579932,1744195870032,-500.0,0.00054794,120]
[357579933,1744195870041,-500.0,0.00054794,120]
[357579934,1744195870051,-500.0,0.00054794,120]
[357579935,1744195870060,-501.36899936,0.00054794,120]
[357579936,1744195870070,-500.0,0.00054794,120]
[357579937,1744195870079,-500.0,0.00054794,120]
[357579938,1744195870089,-500.0,0.00054794,120]
[357579939,1744195870099,-596.59747112,0.00054794,120]
[357579940,1744195870109,-500.0,0.00054794,7]
[357579941,1744195870118,-500.0,0.00054794,120]
[357579942,1744195870127,-500.0,0.00054794,120]
[357579943,1744195870137,-500.0,0.00054794,120]
[357579944,1744195870146,-526.9,0.00054794,120]
[357579945,1744195870155,-500.0,0.00054794,120]
[357579946,1744195870165,-500.0,0.00054794,120]
[357579947,1744195870174,-500.0,0.00054794,120]
[357579948,1744195870183,-500.0,0.00054794,120]
[357579949,1744195870192,-500.0,0.00054794,120]
[357579950,1744195870202,-601.39559193,0.00054794,120]
[357579951,1744195870212,-500.0,0.00054794,120]
[357579952,1744195870222,-500.0,0.00054794,120]
[357579953,1744195870231,-500.96335655,0.00054794,120]
[357579954,1744195870240,-502.74179474,0.00054794,120]
[357579955,1744195870250,-500.0,0.00054794,120]
[357579956,1744195870259,-500.0,0.00054794,120]
[357579957,1744195870268,-500.0,0.00054794,120]
[357579958,1744195870278,-500.0,0.00054794,120]
[357579959,1744195870288,-500.0,0.00054794,120]
[357579960,1744195870298,-500.0,0.00054794,120]
[357579961,1744195870307,-500.0,0.00054794,120]
[357579962,1744195870316,-698.98,0.00054794,120]
[357579963,1744195870326,-506.63264743,0.00054794,120]
[357579964,1744195870336,-601.71,0.00054794,120]
[357579965,1744195870346,-500.0,0.00054794,20]
[357579966,1744195870355,-500.0,0.00054794,120]
[357579967,1744195870364,-500.0,0.00054794,120]
[357579968,1744195870374,-500.0,0.00054794,120]
[357579969,1744195870383,-500.0,0.00054794,120]
[357579970,1744195870392,-500.0,0.00054794,120]
[357579971,1744195870402,-500.0,0.00054794,120]
[357579972,1744195870411,-500.0,0.00054794,120]
[357579973,1744195870420,-532.02936748,0.00054794,120]
[357579974,1744195870429,-500.0,0.00054794,120]
[357579975,1744195870439,-500.0,0.00054794,120]
[357579976,1744195870448,-500.0,0.00054794,120]
[357579977,1744195870457,-514.81014565,0.00054794,120]
[357579978,1744195870472,-559.75623789,0.00054794,120]
[357579979,1744195870483,-507.95430395,0.00054794,120]
[357579980,1744195870493,-504.11849686,0.00054794,120]
[357579981,1744195870502,-500.0,0.00054794,120]
[357579982,1744195870512,-500.0,0.00054794,120]
[357579983,1744195870522,-538.27,0.00054794,120]
[357579984,1744195870532,-500.0,0.00054794,120]
[357579985,1744195870542,-500.0,0.00054794,120]
[357579986,1744195870551,-500.0,0.00054794,120]
[357579987,1744195870562,-500.0,0.00054794,120]
[357579988,1744195870574,-500.0,0.00054794,120]
[357579989,1744195870583,-500.0,0.00054794,120]
[357579990,1744195870593,-500.0,0.00054794,120]
[357579991,1744195870602,-570.29645559,0.00054794,120]
[357579992,1744195870611,-502.45002217,0.00054794,120]
[357579993,1744195870622,-500.0,0.00054794,120]
[357579994,1744195870632,-500.0,0.00054794,120]
[357579995,1744195870642,-500.0,0.00054794,120]
[357579996,1744195870651,-500.0,0.00054794,90]
[357579997,1744195870660,-500.0,0.00054794,120]
[357579998,1744195870670,-500.0,0.00054794,120]
[357579999,1744195870679,-500.0,0.00054794,120]
[357580000,1744195870689,-514.39568321,0.00054794,120]
[357580001,1744195870699,-500.0,0.00054794,120]
[357580002,1744195870708,-500.0,0.00054794,120]
[357580003,1744195870717,-500.0,0.00054794,120]
[357580004,1744195870727,-500.0,0.00054794,120]
[357580005,1744195870737,-500.0,0.00054794,120]
[357580006,1744195870746,-500.0,0.00054794,120]
[357580007,1744195870755,-500.0,0.00054794,120]
[357580008,1744195870765,-500.0,0.00054794,120]
[357580009,1744195870774,-500.0,0.00054794,120]
[357580010,1744195870783,-526.56627383,0.00054794,120]
[357580011,1744195870793,-500.0,0.00054794,120]
[357580012,1744195870802,-510.41624094,0.00054794,120]
[357580013,1744195870811,-500.0,0.00054794,120]
[357580014,1744195870821,-500.0,0.00054794,120]
[357580015,1744195870830,-500.0,0.00054794,120]
[357580016,1744195870839,-500.0,0.00054794,120]
[357580017,1744195870848,-500.0,0.00054794,120]
[357580018,1744195870858,-511.85163384,0.00054794,120]
[357580019,1744195870867,-828.9,0.00054794,120]
[357580020,1744195870876,-500.0,0.00054794,120]
[357580021,1744195870885,-3108.85,0.00054794,120]
[357580022,1744195870894,-500.0,0.00054794,120]
[357580023,1744195870903,-500.0,0.00054794,120]
[357580024,1744195870912,-500.0,0.00054794,120]
[357580025,1744195870921,-824.44,0.00054794,120]
[357580026,1744195870930,-500.0,0.00054794,120]
[357580027,1744195870939,-500.0,0.00054794,120]
[357580028,1744195870949,-500.0,0.00054794,120]
[357580029,1744195870959,-469.11182893,0.00054794,120]
[357580030,1744195870968,-515.16,0.00054794,120]
[357580031,1744195870978,-525.5087834,0.00054794,120]
[357580032,1744195870987,-500.0,0.00054794,120]
[357580033,1744195870996,-500.0,0.00054794,120]
[357580034,1744195871006,-500.0,0.00054794,120]
[357580035,1744195871016,-500.0,0.00054794,120]
[357580036,1744195871026,-500.0,0.00054794,120]
[357580037,1744195871035,-500.0,0.00054794,120]
[357580038,1744195871045,-500.0,0.00054794,120]
[357580039,1744195871054,-500.0,0.00054794,120]
[357580040,1744195871063,-500.0,0.00054794,120]
[357580041,1744195871074,-507.35483476,0.00054794,120]
[357580042,1744195871087,-500.0,0.00054794,120]
[357580043,1744195871097,-500.0,0.00054794,120]
[357580044,1744195871106,-500.0,0.00054794,120]
[357580045,1744195871116,-500.0,0.00054794,120]
[357580046,1744195871126,-1859.51,0.00054794,120]
[357580047,1744195871135,-510.62740938,0.00054794,120]
[357580048,1744195871144,-500.0,0.00054794,120]
[357580049,1744195871154,-500.0,0.00054794,120]
[357580050,1744195871163,-500.0,0.00054794,120]
[357580051,1744195871173,-500.0,0.00054794,120]
[357580052,1744195871182,-500.0,0.00054794,120]
[357580053,1744195871191,-500.0,0.00054794,120]
[357580054,1744195871201,-500.0,0.00054794,120]
[357580055,1744195871210,-500.0,0.00054794,120]
[357580056,1744195871219,-500.0,0.00054794,120]
[357580057,1744195871228,-2078.77,0.00054794,120]
[357580058,1744195871238,-2078.77,0.00054794,120]
[357580059,1744195871247,-500.0,0.00054794,120]
[357580060,1744195871257,-2078.77,0.00054794,120]
[357580061,1744195871266,-2078.77,0.00054794,120]
[357580062,1744195871275,-2078.77,0.00054794,120]
[357580063,1744195871285,-2078.77,0.00054794,120]
[357580064,1744195871294,-2078.77,0.00054794,120]
[357580065,1744195871304,-2078.77,0.00054794,120]
[357580066,1744195871314,-517.36,0.00054794,120]
[357580067,1744195871323,-2078.77,0.00054794,120]
[357580068,1744195871333,-2078.77,0.00054794,120]
[357580069,1744195871343,-2078.77,0.00054794,120]
[357580070,1744195871353,-2078.77,0.00054794,120]
[357580071,1744195871364,-2078.77,0.00054794,120]
[357580072,1744195871374,-941.44,0.00054794,120]
[357580073,1744195871384,-503.07417109,0.00054794,120]
[357580074,1744195871394,-2078.77,0.00054794,120]
[357580075,1744195871403,-2078.77,0.00054794,120]
[357580076,1744195871413,-500.0,0.00054794,120]
[357580077,1744195871423,-2078.77,0.00054794,120]
[357580078,1744195871433,-2078.77,0.00054794,120]
[357580079,1744195871442,-500.0,0.00054794,120]
[357580080,1744195871452,-585.91,0.00054794,120]
[357580081,1744195871462,-2078.77,0.00054794,120]
[357580082,1744195871471,-2078.77,0.00054794,120]
[357580083,1744195871482,-2078.77,0.00054794,120]
[357580084,1744195871492,-2078.77,0.00054794,120]
[357580085,1744195871502,-2078.77,0.00054794,120]
[357580086,1744195871511,-2078.77,0.00054794,120]
[357580087,1744195871521,-2078.809,0.00054794,120]
[357580088,1744195871531,-833.33,0.00054794,120]
[357580089,1744195871543,-500.0,0.00054794,120]
[357580090,1744195871554,-500.0,0.00054794,120]
[357580091,1744195871566,-500.0,0.00054794,120]
[357580092,1744195871577,-500.0,0.00054794,120]
[357580093,1744195871587,-500.0,0.00054794,120]
[357580094,1744195871597,-500.0,0.00054794,120]
[357580095,1744195871607,-500.0,0.00054794,120]
[357580096,1744195871616,-500.0,0.00054794,120]
[357580097,1744195871627,-501.38707627,0.00054794,120]
[357580098,1744195871636,-500.0,0.00054794,120]
[357580099,1744195871648,-500.0,0.00054794,120]
[357580100,1744195871657,-604.98,0.00054794,120]
[357580101,1744195871668,-559.89041002,0.00054794,120]
[357580102,1744195871678,-500.0,0.00054794,120]
[357580103,1744195871688,-500.0,0.00054794,120]
[357580104,1744195871697,-540.48,0.00054794,120]
[357580105,1744195871707,-500.0,0.00054794,120]
[357580106,1744195871717,-508.12657127,0.00054794,120]
[357580107,1744195871727,-500.0,0.00054794,120]
[357580108,1744195871737,-500.0,0.00054794,120]
[357580109,1744195871746,-500.0,0.00054794,120]
[357580110,1744195871756,-513.96967194,0.00054794,120]
[357580111,1744195871765,-516.58,0.00054794,120]
[357580112,1744195871778,-522.33,0.00054794,120]
[357580113,1744195871796,-500.0,0.00054794,120]
[357580114,1744195871807,-501.02749758,0.00054794,120]
[357580115,1744195871817,-500.0,0.00054794,120]
[357580116,1744195871826,-500.0,0.00054794,120]
[357580117,1744195871836,-500.0,0.00054794,120]
[357580118,1744195871845,-539.5210019,0.00054794,120]
[357580119,1744195871855,-500.0,0.00054794,120]
[357580120,1744195871864,-500.0,0.00054794,120]
[357580121,1744195871873,-500.0,0.00054794,120]
[357580122,1744195871883,-500.0,0.00054794,120]
[357580123,1744195871893,-526.66970272,0.00054794,120]
[357580124,1744195871902,-500.0,0.00054794,120]
[357580125,1744195871912,-500.0,0.00054794,120]
[357580126,1744195871922,-500.0,0.00054794,120]
[357580127,1744195871932,-500.0,0.00054794,120]
[357580128,1744195871942,-500.0,0.00054794,120]
[357580129,1744195871952,-160.86084396,0.00054794,120]
[357580130,1744195871962,-649.84540842,0.00054794,120]
[357580131,1744195872177,-501.88621882,0.00054794,120]
[357580132,1744195872186,-500.0,0.00054794,120]
[357580133,1744195872195,-599.74,0.00054794,120]
[357580134,1744195872204,-555.71,0.00054794,120]
[357580135,1744195872214,-503.92126776,0.00054794,120]
[357580136,1744195872224,-500.0,0.00054794,120]
[357580137,1744195872233,-670.8,0.00054794,120]
[357580138,1744195872243,-503.92266003,0.00054794,120]
[357580139,1744195872253,-750.9,0.00054794,120]
[357580140,1744195872263,-501.09158378,0.00054794,120]
[357580141,1744195872272,-500.0,0.00054794,120]
[357580142,1744195872281,-233.43600447,0.00054794,120]
[357580143,1744195872291,-500.0,0.00054794,120]
[357580144,1744195872300,-500.0,0.00054794,120]
[357580145,1744195872309,-500.0,0.00054794,120]
[357580146,1744195872318,-502.45208875,0.00054794,120]
[357580147,1744195872327,-500.0,0.00054794,120]
[357580148,1744195872337,-500.0,0.00054794,120]
[357580149,1744195872346,-500.0,0.00054794,120]
[357580150,1744195872356,-500.0,0.00054794,120]
[357580151,1744195872365,-500.0,0.00054794,120]
[357580152,1744195872374,-500.0,0.00054794,120]
[357580153,1744195872383,-502.54403231,0.00054794,120]
[357580154,1744195872393,-524.29914482,0.00054794,120]
[357580155,1744195872402,-522.05,0.00054794,120]
[357580156,1744195872412,-501.02471876,0.00054794,120]
[357580157,1744195872421,-500.0,0.00054794,120]
[357580158,1744195872430,-500.0,0.00054794,120]
[357580159,1744195872439,-500.0,0.00054794,120]
[357580160,1744195872448,-500.0,0.00054794,120]
[357580161,1744195872458,-500.0,0.00054794,120]
[357580162,1744195872468,-502.71570049,0.00054794,120]
[357580163,1744195872477,-500.0,0.00054794,120]
[357580164,1744195872487,-1168.02,0.00054794,30]
[357580165,1744195872496,-500.0,0.00054794,120]
[357580166,1744195872506,-500.0,0.00054794,120]
[357580167,1744195872515,-515.48508215,0.00054794,120]
[357580168,1744195872524,-882.0,0.00054794,120]
[357580169,1744195872534,-512.55,0.00054794,120]
[357580170,1744195872544,-500.0,0.00054794,120]
[357580171,1744195872553,-500.0,0.00054794,120]
[357580172,1744195872564,-792.75,0.00054794,120]
[357580173,1744195872576,-500.0,0.00054794,120]
[357580174,1744195872586,-500.0,0.00054794,120]
[357580175,1744195872595,-500.0,0.00054794,120]
[357580176,1744195872605,-507.68401334,0.00054794,120]
[357580177,1744195872616,-500.0,0.00054794,120]
[357580178,1744195872625,-500.0,0.00054794,120]
[357580179,1744195872635,-1165.2,0.00054794,120]
[357580180,1744195872646,-500.0,0.00054794,120]
[357580181,1744195872658,-500.0,0.00054794,120]
[357580182,1744195872668,-500.0,0.00054794,120]
[357580183,1744195872677,-500.0,0.00054794,120]
[357580184,1744195872686,-500.0,0.00054794,120]
[357580185,1744195872696,-500.0,0.00054794,120]
[357580186,1744195872706,-500.0,0.00054794,120]
[357580187,1744195872715,-2000.0,0.00054794,120]
[357580188,1744195872724,-500.0,0.00054794,120]
[357580189,1744195872734,-500.0,0.00054794,120]
[357580190,1744195872743,-500.0,0.00054794,120]
[357580191,1744195872753,-541.7941117,0.00054794,120]
[357580192,1744195872763,-500.0,0.00054794,120]
[357580193,1744195872772,-500.0,0.00054794,120]
[357580194,1744195872783,-500.0,0.00054794,120]
[357580195,1744195872793,-500.0,0.00054794,120]
[357580196,1744195872802,-500.0,0.00054794,120]
[357580197,1744195872812,-500.39031177,0.00054794,120]
[357580198,1744195872822,-500.0,0.00054794,120]
[357580199,1744195872832,-503.94927237,0.00054794,120]
[357580200,1744195872841,-500.0,0.00054794,120]
[357580201,1744195872852,-507.34640902,0.00054794,120]
[357580202,1744195872861,-500.0,0.00054794,120]
[357580203,1744195872872,-501.25029087,0.00054794,120]
[357580204,1744195872881,-500.0,0.00054794,120]
[357580205,1744195872891,-505.14402087,0.00054794,120]
[357580206,1744195872900,-500.0,0.00054794,120]
[357580207,1744195872910,-500.0,0.00054794,120]
[357580208,1744195872919,-500.0,0.00054794,120]
[357580209,1744195872929,-511.21662177,0.00054794,120]
[357580210,1744195872939,-500.0,0.00054794,120]
[357580211,1744195872948,-500.0,0.00054794,120]
[357580212,1744195872958,-500.0,0.00054794,120]
[357580213,1744195872967,-508.28523379,0.00054794,120]
[357580214,1744195872977,-500.0,0.00054794,120]
[357580215,1744195872987,-500.0,0.00054794,120]
[357580216,1744195872996,-631.06,0.00054794,120]
[357580217,1744195873006,-373.95756903,0.00054794,120]
[357580218,1744195873016,-500.0,0.00054794,120]
[357580219,1744195873025,-501.55168205,0.00054794,120]
[357580220,1744195873035,-500.0,0.00054794,120]
[357580221,1744195873045,-500.0,0.00054794,120]
[357580222,1744195873055,-500.0,0.00054794,120]
[357580223,1744195873064,-500.0,0.00054794,120]
[357580224,1744195873073,-500.0,0.00054794,120]
[357580225,1744195873083,-300.0,0.00054794,120]
[357580226,1744195873092,-513.17817814,0.00054794,120]
[357580227,1744195873102,-172.05839316,0.00054794,120]
[357580228,1744195873111,-500.0,0.00054794,120]
[357580229,1744195873121,-500.0,0.00054794,120]
[357580230,1744195873131,-520.3,0.00054794,120]
[357580231,1744195873141,-500.0,0.00054794,120]
[357580232,1744195873151,-500.0,0.00054794,120]
[357580233,1744195873160,-544.0620614,0.00054794,120]
[357580234,1744195873170,-500.0,0.00054794,60]
[357580235,1744195873179,-504.70158247,0.00054794,120]
[357580236,1744195873189,-500.0,0.00054794,120]
[357580237,1744195873198,-503.6490978,0.00054794,120]
[357580238,1744195873208,-500.0,0.00054794,120]
[357580239,1744195873217,-552.88,0.00054794,120]
[357580240,1744195873227,-500.0,0.00054794,120]
[357580241,1744195873238,-663.83,0.00054794,120]
[357580242,1744195873247,-500.0,0.00054794,120]
[357580243,1744195873257,-506.3119022,0.00054794,120]
[357580244,1744195873267,-534.68255409,0.00054794,120]
[357580245,1744195873276,-533.45,0.00054794,120]
[357580246,1744195873286,-508.82,0.00054794,120]
[357580247,1744195873296,-502.18493316,0.00054794,120]
[357580248,1744195873306,-520.95164262,0.00054794,120]
[357580249,1744195873317,-530.11962295,0.00054794,120]
[357580250,1744195873327,-500.0,0.00054794,120]
[357580251,1744195873338,-542.34952773,0.00054794,120]
[357580252,1744195873348,-500.0,0.00054794,120]
[357580253,1744195873358,-500.0,0.00054794,120]
[357580254,1744195873368,-500.0,0.00054794,120]
[357580255,1744195873378,-500.0,0.00054794,120]
[357580256,1744195873388,-498.41733563,0.00054794,120]
[357580257,1744195873398,-668.34,0.00054794,120]
[357580258,1744195873408,-1034.35430127,0.00054794,78]
[357580259,1744195873418,-500.0,0.00054794,120]
[357580260,1744195873428,-549.90805482,0.00054794,120]
[357580261,1744195873437,-500.0,0.00054794,120]
[357580262,1744195873448,-500.0,0.00054794,120]
[357580263,1744195873457,-1000.0,0.00054794,120]
[357580264,1744195873467,-636.41133116,0.00054794,120]
[357580265,1744195873477,-500.0,0.00054794,120]
[357580266,1744195873487,-500.0,0.00054794,120]
[357580267,1744195873496,-500.0,0.00054794,120]
[357580268,1744195873506,-788.52,0.00054794,120]
[357580269,1744195873515,-893.02,0.00054794,120]
[357580270,1744195873525,-500.0,0.00054794,120]
[357580271,1744195873535,-341.49944394,0.00054794,120]
[357580272,1744195873545,-500.0,0.00054794,120]
[357580273,1744195873555,-500.0,0.00054794,120]
[357580274,1744195873568,-500.0,0.00054794,120]
[357580275,1744195873578,-488.13577354,0.00054794,120]
[357580276,1744195873587,-500.0,0.00054794,120]
[357580277,1744195873596,-504.19825368,0.00054794,120]
[357580278,1744195873606,-506.06882011,0.00054794,120]
[357580279,1744195873617,-550.19022406,0.00054794,120]
[357580280,1744195873627,-517.81586543,0.00054794,120]
[357580281,1744195873636,-500.0,0.00054794,120]
[357580282,1744195873648,-500.0,0.00054794,120]
[357580283,1744195873657,-505.61845379,0.00054794,120]
[357580284,1744195873667,-500.0,0.00054794,120]
[357580285,1744195873676,-500.0,0.00054794,120]
[357580286,1744195873685,-500.0,0.00054794,120]
[357580287,1744195873695,-863.17,0.00054794,120]
[357580288,1744195873704,-512.87407121,0.00054794,120]
[357580289,1744195873713,-500.0,0.00054794,120]
[357580290,1744195873723,-532.72725631,0.00054794,120]
[357580291,1744195873733,-500.0,0.00054794,120]
[357580292,1744195873744,-500.0,0.00054794,120]
[357580293,1744195873753,-509.49860285,0.00054794,120]
[357580294,1744195873763,-500.0,0.00054794,120]
[357580295,1744195873772,-504.79652875,0.00054794,120]
[357580296,1744195873781,-576.10002145,0.00054794,120]
[357580297,1744195873791,-500.0,0.00054794,120]
[357580298,1744195873801,-500.0,0.00054794,120]
[357580299,1744195873810,-500.0,0.00054794,120]
[357580300,1744195873820,-520.58191567,0.00054794,120]
[357580301,1744195873830,-1477.65,0.00054794,100]
[357580302,1744195873840,-500.0,0.00054794,120]
[357580303,1744195873849,-506.18518872,0.00054794,120]
[357580304,1744195873858,-500.0,0.00054794,120]
[357580305,1744195873868,-500.0,0.00054794,120]
[357580306,1744195873878,-500.0,0.00054794,120]
[357580307,1744195873887,-500.0,0.00054794,120]
[357580308,1744195873896,-505.00102874,0.00054794,120]
[357580309,1744195873906,-500.0,0.00054794,120]
[357580310,1744195873916,-500.0,0.00054794,120]
[357580311,1744195873925,-500.0,0.00054794,120]
[357580312,1744195873934,-503.72236298,0.00054794,120]
[357580313,1744195873943,-520.03,0.00054794,120]
[357580314,1744195873953,-578.5589727,0.00054794,120]
[357580315,1744195873962,-566.0,0.00054794,120]
[357580316,1744195873972,-524.04908012,0.00054794,120]
[357580317,1744195873981,-513.52384677,0.00054794,120]
[357580318,1744195873991,-1629.01,0.00054794,120]
[357580319,1744195874000,-1629.01,0.00054794,120]
[357580320,1744195874010,-505.70696933,0.00054794,120]
[357580321,1744195874019,-1629.01,0.00054794,120]
[357580322,1744195874029,-500.0,0.00054794,120]
[357580323,1744195874039,-1629.01,0.00054794,120]
[357580324,1744195874048,-1629.01,0.00054794,120]
[357580325,1744195874058,-1629.01,0.00054794,120]
[357580326,1744195874067,-500.0,0.00054794,120]
[357580327,1744195874077,-1629.01,0.00054794,120]
[357580328,1744195874086,-1629.01,0.00054794,120]
[357580329,1744195874096,-500.0,0.00054794,120]
[357580330,1744195874105,-500.0,0.00054794,120]
[357580331,1744195874115,-1629.01,0.00054794,120]
[357580332,1744195874124,-1629.01,0.00054794,120]
[357580333,1744195874133,-500.0,0.00054794,120]
[357580334,1744195874143,-1629.01,0.00054794,120]
[357580335,1744195874153,-1629.01,0.00054794,120]
[357580336,1744195874163,-1629.01,0.00054794,120]
[357580337,1744195874172,-1629.01,0.00054794,120]
[357580338,1744195874181,-1629.01,0.00054794,120]
[357580339,1744195874191,-365.99150422,0.00054794,120]
[357580340,1744195874200,-514.75477,0.00054794,120]
[357580341,1744195874209,-1629.01,0.00054794,120]
[357580342,1744195874219,-1629.01,0.00054794,120]
[357580343,1744195874228,-500.0,0.00054794,120]
[357580344,1744195874238,-1629.01,0.00054794,120]
[357580345,1744195874247,-1629.01,0.00054794,120]
[357580346,1744195874256,-500.0,0.00054794,120]
[357580347,1744195874265,-1629.01,0.00054794,120]